[Event "Susha Chess Rapid 2022"]
[Site "Shusha"]
[Date "2022.09.23"]
[Round "7.5"]
[White "Mamedov, Rauf"]
[Black "Yilmaz, Mustafa"]
[Result "1/2-1/2"]
[ECO "B50"]
[WhiteElo "2646"]
[BlackElo "2633"]
[Annotator "TA"]
[PlyCount "125"]
[EventDate "2022.09.21"]
[EventType "tourn"]
[EventCountry "AZE"]
[SourceTitle "playchess.com"]
[Source "ChessBase"]
[SourceQuality "1"]
[TimeControl "900+10"]

{[%evp 14,125,0,0,10,14,27,21,50,41,78,69,87,34,94,89,77,54,86,91,70,23,23,30,64,70,104,101,91,23,25,25,16,19,23,35,31,0,21,21,19,20,33,27,30,24,30,18,24,14,9,0,0,0,3,0,0,0,0,0,0,0,5,0,0,0,0,0,0,0,0,0,0,-15,-15,-15,-15,-15,-15,-15,-13,-13,-13,-13,-13,-13,-13,-13,-13,-13,-8,-8,-8,-8,-8,-8,-8,-8,0,-8,-8,-8,-8,-8,-7,-8,-8,-8,-8,-8,-8,-8,0,0]} 1. e4 {[%emt 0:00:01]} c5 {[%emt 0:00:01]} 2. Nf3 {[%emt 0:00:01]} d6 {[%emt 0:00:02]} 3. Nc3 {[%emt 0:00:01]} Nf6 {[%emt 0:00:06]} 4. g3 {[%emt 0:00:01]} g6 {[%emt 0:00:14]} 5. Bg2 {[%emt 0:00:01]} Bg7 {[%emt 0:00:01]} 6. O-O {[%emt 0:00:02]} O-O {[%emt 0:00:02]} 7. d3 {[%emt 0:00:02]} Nc6 {[%emt 0:00:04]} 8. Re1 {[%emt 0:00:01]} Nd4 {[%emt 0:02:27] [#] B25: Closed Sicilian: 3 g3, lines without early Be3.} 9. e5 $146 {[%emt 0:01:32] Strongly threatening Nxd4.} ({Predecessor:} 9. h3 Bd7 10. Nd5 Rb8 11. c3 Nxf3+ 12. Qxf3 b5 13. Bg5 Bc6 14. Nxf6+ exf6 15. Bf4 b4 16. cxb4 Rxb4 {0-1 (33) Zhanatbek,A-Egorov,M (1834) Pavlodar 2017}) 9... Ng4 {[%emt 0:01:35]} 10. exd6 {[%emt 0:01:14]} Qxd6 {[%emt 0:00:04]} 11. h3 {[%emt 0:00:47] Hoping for Ne4.} Nxf3+ {[%emt 0:00:13]} 12. Qxf3 {[%emt 0:00:09]} ({Don't play} 12. Bxf3 $6 Bd4 13. Bxg4 Qxg3+ 14. Kh1 Bxf2 $11) 12... Ne5 {[%emt 0:00:01]} 13. Qf4 {[%emt 0:00:05]} ({White should try} 13. Qd5 $16) 13... Nc6 {[%emt 0:03:35] [#]} (13... Bd7 $1 $14) 14. Qxd6 $1 $16 {[%emt 0:02:05]} exd6 {[%emt 0:00:02]} 15. Nb5 {[%emt 0:00:05]} (15. Bf4 $5 {[%cal Rf4d6]}) 15... Rb8 {[%emt 0:04:45]} 16. c3 {[%emt 0:01:45] White is more active.} Ne5 {[%emt 0:00:02]} 17. Nxd6 {[%emt 0:00:51]} (17. Rd1 $14) 17... Nxd3 $11 {[%emt 0:00:09]} 18. Re2 {[%emt 0:00:07]} b5 {[%emt 0:01:08]} 19. Bg5 {[%emt 0:00:21]} b4 {[%emt 0:01:15] [#]} 20. Be7 $1 {[%emt 0:00:13]} Ba6 {[%emt 0:00:18]} 21. Rc2 {[%emt 0:03:06]} (21. Bf1 $16) 21... Rfe8 {[%emt 0:00:11]} 22. Nxe8 {[%emt 0:00:56]} Rxe8 {[%emt 0:00:01]} 23. Bg5 {[%emt 0:00:28] And now cxb4 would win.} Ne1 $1 {[%emt 0:00:11]} 24. Rcc1 {[%emt 0:00:28]} Nd3 {[%emt 0:00:04][%csl LRb2,LRc1]} 25. Bf1 {[%emt 0:01:59][%cal Bg2f1,Bf1a6,Ba6d3][%mdl 32]} bxc3 {[%emt 0:01:53]} 26. Rxc3 {[%emt 0:00:03]} Bxc3 {[%emt 0:00:05]} 27. bxc3 {[%emt 0:00:01]} Ne1 {[%emt 0:00:08][%cal Bd3e1,Be1f3,Bf3g5,Bg5e4][%mdl 32]} 28. Bxa6 {[%emt 0:02:20]} Nf3+ {[%emt 0:00:01]} 29. Kg2 {[%emt 0:00:01]} Nxg5 {[%emt 0:00:01][%mdl 4096] Endgame KRB-KRN} 30. Rd1 {[%emt 0:00:01]} Re7 {[%emt 0:00:11] Prevents Rd7.} 31. Rd8+ {[%emt 0:00:27]} Kg7 {[%emt 0:00:01] The position is equal.} 32. Bd3 {[%emt 0:00:01]} Ne4 {[%emt 0:00:22]} 33. c4 {[%emt 0:00:15]} Ng5 {[%emt 0:00:43]} 34. Rc8 {[%emt 0:00:20]} (34. h4 $5 {[%cal Rh4g5]} Ne6 35. Rd6 $11) 34... Rd7 {[%emt 0:00:27]} 35. h4 {[%emt 0:00:46]} Rxd3 {[%emt 0:00:10]} 36. hxg5 {[%emt 0:00:01] KR-KR} Ra3 {[%emt 0:00:02]} 37. Rxc5 {[%emt 0:00:01]} Rxa2 {[%emt 0:00:12]} 38. Rc7 {[%emt 0:00:01]} a5 {[%emt 0:00:05]} 39. g4 {[%emt 0:00:24]} Rc2 {[%emt 0:00:22]} 40. Kg3 {[%emt 0:00:12]} a4 {[%emt 0:00:12]} 41. f3 {[%emt 0:00:16]} a3 {[%emt 0:00:03]} 42. Ra7 {[%emt 0:00:01]} a2 {[%emt 0:00:03]} 43. c5 {[%emt 0:00:01]} Rxc5 {[%emt 0:00:17]} 44. Rxa2 {[%emt 0:00:01]} Rxg5 {[%emt 0:00:02]} 45. f4 {[%emt 0:00:18]} Rb5 {[%emt 0:00:05]} 46. g5 {[%emt 0:00:01]} h6 {[%emt 0:00:13]} 47. gxh6+ {[%emt 0:00:11]} Kxh6 {[%emt 0:00:01]} 48. Rh2+ {[%emt 0:00:08]} Kg7 {[%emt 0:00:01]} 49. Ra2 {[%emt 0:00:03]} Rb3+ {[%emt 0:00:04]} 50. Kg2 {[%emt 0:00:06]} Kh6 {[%emt 0:00:05]} 51. Ra5 {[%emt 0:00:38]} f5 {[%emt 0:00:24]} 52. Ra6 {[%emt 0:00:00]} Kh5 {[%emt 0:00:02]} 53. Rc6 {[%emt 0:00:01]} Ra3 {[%emt 0:00:03]} 54. Rb6 {[%emt 0:00:01]} Ra2+ {[%emt 0:00:50]} 55. Kg3 {[%emt 0:00:01]} Ra3+ {[%emt 0:00:02]} 56. Kg2 {[%emt 0:00:02]} Kg4 {[%emt 0:00:21]} 57. Rxg6+ {[%emt 0:00:03]} Kxf4 {[%emt 0:00:01]} 58. Rb6 {[%emt 0:00:20]} Ra2+ {[%emt 0:00:02]} 59. Kf1 {[%emt 0:00:02]} Kg3 {[%emt 0:00:02]} 60. Rb3+ {[%emt 0:00:02]} Kg4 {[%emt 0:00:02]} 61. Rc3 $1 {[%emt 0:00:02]} f4 {[%emt 0:00:02]} 62. Rb3 {[%emt 0:00:01]} f3 {[%emt 0:00:21] ( -> ...Kg3)} 63. Rb8 {[%emt 0:00:02] Weighted Error Value: White=0.07 (flawless) /Black=0.09 (flawless)} 1/2-1/2